lending/lending_fUSD_20250425
["ID","MTS","AMOUNT","RATE_DAILY","PERIOD"]
[358948135,1745583051116,-559.9624969,0.00035616,2]
[358948136,1745583051125,-500.0,0.00035616,2]
[358948137,1745583051135,-500.0,0.00035616,2]
[358948138,1745583051145,-500.0,0.00035616,2]
[358948139,1745583051155,-500.0,0.00035616,2]
[358948140,1745583051281,-500.0,0.00035616,2]
[358948141,1745583051291,-500.0,0.00035616,2]
[358948142,1745583051301,-500.0,0.00035616,2]
[358948143,1745583051311,-500.0,0.00035616,2]
[358948144,1745583051321,-500.0,0.00035616,2]
[358948145,1745583051331,-500.0,0.00035616,2]
[358948146,1745583051341,-500.0,0.00035616,2]
[358948147,1745583051351,-500.0,0.00035616,2]
[358948148,1745583051361,-521.02001428,0.00035616,2]
[358948149,1745583051371,-514.02876276,0.00035616,2]
[358948150,1745583051381,-272.620426,0.00035616,7]
[358948151,1745583051391,-272.620426,0.00035616,7]
[358948152,1745583051404,-858.84,0.00035616,2]
[358948153,1745583051413,-508.776476,0.00035616,2]
[358948154,1745583051423,-272.620426,0.00035616,7]
[358948155,1745583051434,-272.620426,0.00035616,7]
[358948156,1745583051443,-763.88,0.00035616,2]
[358948157,1745583051454,-563.02603895,0.00035616,2]
[358948158,1745583051464,-500.0,0.00035616,2]
[358948159,1745583051476,-500.0,0.00035616,2]
[358948160,1745583051487,-500.0,0.00035616,2]
[358948161,1745583051497,-500.0,0.00035616,2]
[358948162,1745583051507,-151.0,0.00035616,7]
[358948163,1745583051518,-572.21,0.00035616,2]
[358948164,1745583051528,-272.620426,0.00035616,7]
[358948165,1745583051538,-151.0,0.00035616,7]
[358948166,1745583051548,-500.0,0.00035616,2]
[358948167,1745583051558,-272.620426,0.00035616,7]
[358948168,1745583051568,-272.620426,0.00035616,7]
[358948169,1745583051577,-272.620426,0.00035616,7]
[358948170,1745583051587,-530.70339973,0.00035616,2]
[358948171,1745583051597,-539.17723631,0.00035616,2]
[358948172,1745583051606,-500.0,0.00035616,2]
[358948173,1745583051616,-529.438925,0.00035616,2]
[358948174,1745583051626,-719.69,0.00035616,2]
[358948175,1745583051636,-879.02,0.00035616,2]
[358948176,1745583051645,-500.0,0.00035616,2]
[358948177,1745583051655,-500.0,0.00035616,2]
[358948178,1745583051664,-570.43,0.00035616,2]
[358948179,1745583051674,-500.0,0.00035616,2]
[358948180,1745583051683,-990.31,0.00035616,2]
[358948181,1745583051693,-500.0,0.00035616,2]
[358948182,1745583051703,-529.23898337,0.00035616,2]
[358948183,1745583051713,-542.96,0.00035616,2]
[358948184,1745583051722,-657.75,0.00035616,2]
[358948185,1745583051732,-500.0,0.00035616,2]
[358948186,1745583051742,-500.0,0.00035616,2]
[358948187,1745583051752,-500.0,0.00035616,2]
[358948188,1745583051762,-151.0,0.00035616,7]
[358948189,1745583051771,-151.0,0.00035616,7]
[358948190,1745583051781,-151.0,0.00035616,7]
[358948191,1745583051791,-163.47800284,0.00035616,2]
[358948192,1745583051800,-151.0,0.00035616,7]
[358948193,1745583051810,-151.0,0.00035616,7]
[358948194,1745583051819,-431.58615479,0.00035616,2]
[358948195,1745583051829,-820.01,0.00035616,2]
[358948196,1745583051838,-500.0,0.00035616,2]
[358948197,1745583051847,-547.7032108,0.00035616,2]
[358948198,1745583051856,-961.6,0.00035616,2]
[358948199,1745583051866,-1135.12,0.00035616,2]
[358948200,1745583051875,-1135.12,0.00035616,2]
[358948201,1745583051884,-1135.12,0.00035616,2]
[358948202,1745583051894,-1135.12,0.00035616,2]
[358948203,1745583051904,-1135.12,0.00035616,2]
[358948204,1745583051914,-500.0,0.00035616,2]
[358948205,1745583051924,-1135.12,0.00035616,2]
[358948206,1745583051933,-1135.12,0.00035616,2]
[358948207,1745583051942,-1135.12,0.00035616,2]
[358948208,1745583051952,-500.0,0.00035616,2]
[358948209,1745583051961,-1135.12,0.00035616,2]
[358948210,1745583051970,-500.0,0.00035616,2]
[358948211,1745583051980,-500.0,0.00035616,2]
[358948212,1745583051989,-500.0,0.00035616,2]
[358948213,1745583051999,-500.0,0.00035616,2]
[358948214,1745583052008,-500.0,0.00035616,2]
[358948215,1745583052019,-500.0,0.00035616,2]
[358948216,1745583052028,-515.47,0.00035616,2]
[358948217,1745583052037,-845.57,0.00035616,2]
[358948218,1745583052047,-500.0,0.00035616,2]
[358948219,1745583052057,-500.0,0.00035616,2]
[358948220,1745583052066,-151.0,0.00035616,7]
[358948221,1745583052076,-754.68,0.00035616,2]
[358948222,1745583052085,-500.0,0.00035616,2]
[358948223,1745583052094,-151.0,0.00035616,7]
[358948224,1745583052104,-151.0,0.00035616,7]
[358948225,1745583052113,-151.0,0.00035616,7]
[358948226,1745583052123,-151.0,0.00035616,7]
[358948227,1745583052132,-500.0,0.00035616,2]
[358948228,1745583052141,-500.0,0.00035616,2]
[358948229,1745583052151,-512.37,0.00035616,2]
[358948230,1745583052160,-500.0,0.00035616,2]
[358948231,1745583052170,-528.97581744,0.00035616,2]
[358948232,1745583052179,-500.0,0.00035616,2]
[358948233,1745583052188,-970.8,0.00035616,2]
[358948234,1745583052198,-500.0,0.00035616,2]
[358948235,1745583052207,-500.0,0.00035616,2]
[358948236,1745583052217,-500.0,0.00035616,2]
[358948237,1745583052227,-500.0,0.00035616,2]
[358948238,1745583052237,-500.0,0.00035616,2]
[358948239,1745583052247,-1145.2,0.00035616,2]
[358948240,1745583052255,-305.15924828,0.00035616,2]
[358948241,1745583052265,-500.0,0.00035616,2]
[358948242,1745583052274,-500.0,0.00035616,2]
[358948243,1745583052284,-500.0,0.00035616,2]
[358948244,1745583052293,-500.0,0.00035616,2]
[358948245,1745583052303,-501.02327287,0.00035616,2]
[358948246,1745583052312,-500.0,0.00035616,2]
[358948247,1745583052321,-556.42657632,0.00035616,2]
[358948248,1745583052330,-1103.01,0.00035616,2]
[358948249,1745583052340,-536.99,0.00035616,2]
[358948250,1745583052349,-500.0,0.00035616,2]
[358948251,1745583052358,-500.0,0.00035616,2]
[358948252,1745583052368,-500.0,0.00035616,2]
[358948253,1745583052377,-500.0,0.00035616,2]
[358948254,1745583052387,-500.0,0.00035616,2]
[358948255,1745583052400,-1179.17,0.00035616,2]
[358948256,1745583052411,-500.0,0.00035616,2]
[358948257,1745583052421,-768.62,0.00035616,2]
[358948258,1745583052430,-179.531903,0.00035616,7]
[358948259,1745583052441,-179.531903,0.00035616,7]
[358948260,1745583052451,-179.531903,0.00035616,7]
[358948261,1745583052460,-500.0,0.00035616,2]
[358948262,1745583052473,-500.0,0.00035616,2]
[358948263,1745583052482,-500.0,0.00035616,2]
[358948264,1745583052492,-1042.75,0.00035616,2]
[358948265,1745583052502,-179.531903,0.00035616,7]
[358948266,1745583052512,-781.78,0.00035616,2]
[358948267,1745583052521,-179.531903,0.00035616,7]
[358948268,1745583052531,-500.0,0.00035616,2]
[358948269,1745583052541,-500.0,0.00035616,2]
[358948270,1745583052551,-500.0,0.00035616,2]
[358948271,1745583052561,-500.0,0.00035616,2]
[358948272,1745583052570,-179.531903,0.00035616,7]
[358948273,1745583052579,-500.0,0.00035616,2]
[358948274,1745583052589,-179.531903,0.00035616,7]
[358948275,1745583052598,-179.531903,0.00035616,7]
[358948276,1745583052608,-179.531903,0.00035616,7]
[358948277,1745583052618,-792.6,0.00035616,2]
[358948278,1745583052628,-179.531903,0.00035616,7]
[358948279,1745583052637,-500.0,0.00035616,2]
[358948280,1745583052647,-871.81,0.00035616,2]
[358948281,1745583052657,-500.0,0.00035616,2]
[358948282,1745583052667,-500.0,0.00035616,2]
[358948283,1745583052677,-500.0,0.00035616,2]
[358948284,1745583052688,-500.0,0.00035616,2]
[358948285,1745583052698,-500.0,0.00035616,2]
[358948286,1745583052708,-1002.05,0.00035616,2]
[358948287,1745583052718,-500.0,0.00035616,2]
[358948288,1745583052728,-530.8452842,0.00035616,2]
[358948289,1745583052738,-610.47,0.00035616,2]
[358948290,1745583052748,-500.0,0.00035616,2]
[358948291,1745583052758,-500.0,0.00035616,2]
[358948292,1745583052768,-500.0,0.00035616,2]
[358948293,1745583052779,-500.0,0.00035616,2]
[358948294,1745583052789,-509.89299915,0.00035616,2]
[358948295,1745583052799,-500.0,0.00035616,2]
[358948296,1745583052808,-500.0,0.00035616,2]
[358948297,1745583052820,-500.0,0.00035616,2]
[358948298,1745583052829,-500.0,0.00035616,2]
[358948299,1745583052839,-500.0,0.00035616,2]
[358948300,1745583052849,-159.74190709,0.00035616,2]
[358948301,1745583052858,-942.33,0.00035616,2]
[358948302,1745583052868,-500.0,0.00035616,2]
[358948303,1745583052878,-583.08237279,0.00035616,2]
[358948304,1745583052888,-560.53397147,0.00035616,2]
[358948305,1745583052898,-500.0,0.00035616,2]
[358948306,1745583052907,-500.0,0.00035616,2]
[358948307,1745583052918,-513.40779494,0.00035616,2]
[358948308,1745583052927,-767.48,0.00035616,2]
[358948309,1745583052937,-500.0,0.00035616,2]
[358948310,1745583052949,-500.0,0.00035616,2]
[358948311,1745583052959,-500.0,0.00035616,2]
[358948312,1745583052968,-593.9,0.00035616,2]
[358948313,1745583052979,-500.0,0.00035616,2]
[358948314,1745583052989,-531.36469204,0.00035616,2]
[358948315,1745583052999,-500.0,0.00035616,2]
[358948316,1745583053009,-827.14,0.00035616,2]
[358948317,1745583053020,-500.0,0.00035616,2]
[358948318,1745583053029,-1147.58,0.00035616,2]
[358948319,1745583053040,-500.0,0.00035616,2]
[358948320,1745583053050,-1065.37,0.00035616,2]
[358948321,1745583053059,-500.0,0.00035616,2]
[358948322,1745583053069,-500.0,0.00035616,2]
[358948323,1745583053079,-500.0,0.00035616,2]
[358948324,1745583053091,-500.0,0.00035616,2]
[358948325,1745583053101,-1122.52,0.00035616,2]
[358948326,1745583053111,-500.0,0.00035616,2]
[358948327,1745583053122,-500.0,0.00035616,2]
[358948328,1745583053133,-500.0,0.00035616,2]
[358948329,1745583053145,-500.0,0.00035616,2]
[358948330,1745583053155,-179.41990674,0.00035616,2]
[358948331,1745583053165,-500.0,0.00035616,2]
[358948332,1745583053175,-500.0,0.00035616,2]
[358948333,1745583053186,-500.0,0.00035616,2]
[358948334,1745583053196,-500.0,0.00035616,2]
[358948335,1745583053206,-500.0,0.00035616,2]
[358948336,1745583053216,-500.0,0.00035616,2]
[358948337,1745583053228,-500.0,0.00035616,2]
[358948338,1745583053237,-500.0,0.00035616,2]
[358948339,1745583053248,-500.0,0.00035616,2]
[358948340,1745583053260,-901.52,0.00035616,2]
[358948341,1745583053272,-500.0,0.00035616,2]
[358948342,1745583053283,-1077.87,0.00035616,2]
[358948343,1745583053293,-496.15403073,0.00035616,2]
[358948344,1745583053302,-500.0,0.00035616,2]
[358948345,1745583053312,-500.0,0.00035616,2]
[358948346,1745583053322,-1008.41,0.00035616,2]
[358948347,1745583053332,-895.82,0.00035616,2]
[358948348,1745583053343,-500.0,0.00035616,2]
[358948349,1745583053353,-1338.54,0.00035616,2]
[358948350,1745583053363,-1139.46,0.00035616,2]
[358948351,1745583053372,-573.9869886,0.00035616,2]
[358948352,1745583053382,-903.82,0.00035616,2]
[358948353,1745583053393,-560.99,0.00035616,2]
[358948354,1745583053406,-151.0,0.00035616,7]
[358948355,1745583053416,-823.66,0.00035616,2]
[358948356,1745583053426,-151.0,0.00035616,7]
[358948357,1745583053437,-292.16441,0.00035616,7]
[358948358,1745583053446,-555.96431452,0.00035616,2]
[358948359,1745583053456,-781.45,0.00035616,2]
[358948360,1745583053467,-500.0,0.00035616,2]
[358948361,1745583053478,-500.0,0.00035616,2]
[358948362,1745583053488,-500.0,0.00035616,2]
[358948363,1745583053498,-500.0,0.00035616,2]
[358948364,1745583053508,-500.0,0.00035616,2]
[358948365,1745583053518,-500.0,0.00035616,2]
[358948366,1745583053528,-151.0,0.00035616,7]
[358948367,1745583053539,-151.0,0.00035616,7]
[358948368,1745583053549,-151.0,0.00035616,7]
[358948369,1745583053559,-151.0,0.00035616,7]
[358948370,1745583053569,-657.34,0.00035616,2]
[358948371,1745583053579,-500.0,0.00035616,2]
[358948372,1745583053589,-500.0,0.00035616,2]
[358948373,1745583053599,-500.0,0.00035616,2]
[358948374,1745583053609,-500.0,0.00035616,2]
[358948375,1745583053619,-644.62,0.00035616,2]
[358948376,1745583053630,-505.96,0.00035616,2]
[358948377,1745583053640,-583.43344478,0.00035616,2]
[358948378,1745583053650,-547.24715166,0.00035616,2]
[358948379,1745583053661,-500.0,0.00035616,2]
[358948380,1745583053671,-595.07,0.00035616,2]
[358948381,1745583053681,-500.0,0.00035616,2]
[358948382,1745583053691,-209.21241495,0.00035616,2]
[358948383,1745583053701,-500.0,0.00035616,2]
[358948384,1745583053712,-500.0,0.00035616,2]
[358948385,1745583053723,-500.0,0.00035616,2]
[358948386,1745583053732,-500.0,0.00035616,2]
[358948387,1745583053743,-500.0,0.00035616,2]
[358948388,1745583053753,-500.0,0.00035616,2]
[358948389,1745583053763,-501.78,0.00035616,2]
[358948390,1745583053773,-500.0,0.00035616,2]
[358948391,1745583053783,-500.0,0.00035616,2]
[358948392,1745583053792,-500.0,0.00035616,2]
[358948393,1745583053802,-500.0,0.00035616,2]
[358948394,1745583053812,-641.42,0.00035616,2]
[358948395,1745583053823,-500.0,0.00035616,2]
[358948396,1745583053834,-576.87411685,0.00035616,2]
[358948397,1745583053844,-500.0,0.00035616,2]
[358948398,1745583053854,-500.0,0.00035616,2]
[358948399,1745583053864,-500.0,0.00035616,2]
[358948400,1745583053874,-500.0,0.00035616,2]
[358948401,1745583053884,-603.47917906,0.00035616,2]
[358948402,1745583053894,-500.0,0.00035616,2]
[358948403,1745583053904,-500.0,0.00035616,2]
[358948404,1745583053914,-852.47,0.00035616,2]
[358948405,1745583053924,-500.0,0.00035616,2]
[358948406,1745583053935,-500.0,0.00035616,2]
[358948407,1745583053945,-500.0,0.00035616,2]
[358948408,1745583053955,-500.0,0.00035616,2]
[358948409,1745583053965,-500.0,0.00035616,2]
[358948410,1745583053975,-318.02479488,0.00035616,2]
[358948411,1745583053985,-875.42,0.00035616,2]
[358948412,1745583053995,-821.73,0.00035616,2]
[358948413,1745583054005,-500.0,0.00035616,2]
[358948414,1745583054016,-500.0,0.00035616,2]
[358948415,1745583054026,-1036.33,0.00035616,2]
[358948416,1745583054037,-513.44,0.00035616,2]
[358948417,1745583054047,-500.0,0.00035616,2]
[358948418,1745583054057,-841.68,0.00035616,2]
[358948419,1745583054067,-500.0,0.00035616,2]
[358948420,1745583054077,-500.0,0.00035616,2]
[358948421,1745583054088,-612.26,0.00035616,2]
[358948422,1745583054098,-500.0,0.00035616,2]
[358948423,1745583054108,-500.0,0.00035616,2]
[358948424,1745583054118,-500.0,0.00035616,2]
[358948425,1745583054128,-500.84,0.00035616,2]
[358948426,1745583054138,-500.0,0.00035616,2]
[358948427,1745583054148,-500.0,0.00035616,2]
[358948428,1745583054159,-520.1,0.00035616,2]
[358948429,1745583054169,-500.0,0.00035616,2]
[358948430,1745583054179,-500.0,0.00035616,2]
[358948431,1745583054189,-500.0,0.00035616,2]
[358948432,1745583054199,-500.0,0.00035616,2]
[358948433,1745583054209,-500.0,0.00035616,2]
[358948434,1745583054220,-498.02399997,0.00035616,2]
[358948435,1745583054230,-500.0,0.00035616,2]
[358948436,1745583054240,-975.25,0.00035616,2]
[358948437,1745583054251,-2765.1,0.00035616,2]
[358948438,1745583054261,-500.0,0.00035616,2]
[358948439,1745583054271,-500.0,0.00035616,2]
[358948440,1745583054281,-502.18,0.00035616,2]
[358948441,1745583054293,-500.0,0.00035616,2]
[358948442,1745583054304,-500.0,0.00035616,2]
[358948443,1745583054315,-1243.64,0.00035616,2]
[358948444,1745583054325,-500.0,0.00035616,2]
[358948445,1745583054336,-1752.11,0.00035616,2]
[358948446,1745583054345,-500.0,0.00035616,2]
[358948447,1745583054355,-500.0,0.00035616,2]
[358948448,1745583054366,-500.0,0.00035616,2]
[358948449,1745583054376,-500.0,0.00035616,2]
[358948450,1745583054386,-500.0,0.00035616,2]
[358948451,1745583054399,-500.0,0.00035616,2]
[358948452,1745583054409,-500.0,0.00035616,2]
[358948453,1745583054419,-500.0,0.00035616,2]
[358948454,1745583054429,-500.0,0.00035616,2]
[358948455,1745583054440,-500.0,0.00035616,2]
[358948456,1745583054451,-500.0,0.00035616,2]
[358948457,1745583054461,-1549.0,0.00035616,2]
[358948458,1745583054475,-519.88200471,0.00035616,2]
[358948459,1745583054485,-500.0,0.00035616,2]
[358948460,1745583054496,-500.0,0.00035616,2]
[358948461,1745583054507,-449.53899876,0.00035616,2]
[358948462,1745583054518,-500.0,0.00035616,2]
[358948463,1745583054528,-500.0,0.00035616,2]
[358948464,1745583054539,-588.17231915,0.00035616,2]
[358948465,1745583054549,-500.0,0.00035616,2]
[358948466,1745583054559,-500.0,0.00035616,2]
[358948467,1745583054569,-500.0,0.00035616,2]
[358948468,1745583054580,-151.0,0.00035616,7]
[358948469,1745583054591,-151.0,0.00035616,7]
[358948470,1745583054601,-500.0,0.00035616,2]
[358948471,1745583054611,-653.33,0.00035616,2]
[358948472,1745583054622,-500.0,0.00035616,2]
[358948473,1745583054632,-500.0,0.00035616,2]
[358948474,1745583054642,-300.0,0.00035616,30]
[358948475,1745583054652,-500.0,0.00035616,2]
[358948476,1745583054662,-500.0,0.00035616,2]
[358948477,1745583054673,-500.0,0.00035616,2]
[358948478,1745583054683,-242.934734,0.00035616,7]
[358948479,1745583054693,-500.0,0.00035616,2]
[358948480,1745583054703,-1490.15,0.00035616,2]
[358948481,1745583054714,-500.0,0.00035616,2]
[358948482,1745583054724,-151.0,0.00035616,7]
[358948483,1745583054735,-151.0,0.00035616,7]
[358948484,1745583054746,-500.0,0.00035616,2]
[358948485,1745583054756,-500.0,0.00035616,2]
[358948486,1745583054767,-151.0,0.00035616,7]
[358948487,1745583054778,-151.0,0.00035616,7]
[358948488,1745583054788,-1281.04,0.00035616,2]
[358948489,1745583054798,-151.0,0.00035616,7]
[358948490,1745583054810,-500.0,0.00035616,2]
[358948491,1745583054820,-664.11,0.00035616,2]
[358948492,1745583054830,-500.0,0.00035616,2]
[358948493,1745583054841,-557.66,0.00035616,2]
[358948494,1745583054852,-500.0,0.00035616,2]
[358948495,1745583055102,-544.36,0.00035616,2]
[358948496,1745583055113,-1691.971333,0.00035616,7]
[358948497,1745583055124,-2000.0,0.00035616,30]
[358948498,1745583055134,-151.0,0.00035616,7]
[358948499,1745583055143,-161.281903,0.00035616,7]
[358948500,1745583055153,-1691.971333,0.00035616,7]
[358948501,1745583055162,-1691.971333,0.00035616,7]
[358948502,1745583055172,-1691.971333,0.00035616,7]
[358948503,1745583055181,-803.76,0.00035616,2]
[358948504,1745583055191,-575.31095278,0.00035616,2]
[358948505,1745583055200,-528.08777522,0.00035616,2]
[358948506,1745583055210,-500.0,0.00035616,2]
[358948507,1745583055221,-500.0,0.00035616,2]
[358948508,1745583055231,-151.0,0.00035616,7]
[358948509,1745583055241,-661.96,0.00035616,2]
[358948510,1745583055251,-154.336836,0.00035616,7]
[358948511,1745583055260,-672.15,0.00035616,2]
[358948512,1745583055270,-533.3,0.00035616,2]
[358948513,1745583055280,-731.33,0.00035616,2]
[358948514,1745583055291,-500.0,0.00035616,2]
[358948515,1745583055300,-593.04,0.00035616,2]
[358948516,1745583055310,-500.0,0.00035616,2]
[358948517,1745583055320,-500.0,0.00035616,2]
[358948518,1745583055330,-519.93809644,0.00035616,2]
[358948519,1745583055340,-151.0,0.00035616,7]
[358948520,1745583055349,-151.0,0.00035616,7]
[358948521,1745583055358,-500.0,0.00035616,2]
[358948522,1745583055368,-500.0,0.00035616,2]
[358948523,1745583055377,-158.902383,0.00035616,7]
[358948524,1745583055386,-500.0,0.00035616,2]
[358948525,1745583055398,-500.0,0.00035616,2]
[358948526,1745583055408,-500.0,0.00035616,2]
[358948527,1745583055417,-500.0,0.00035616,2]
[358948528,1745583055426,-500.0,0.00035616,2]
[358948529,1745583055438,-353.04408255,0.00035616,2]
[358948530,1745583055449,-2909.22,0.00035616,2]
[358948531,1745583055459,-500.0,0.00035616,2]
[358948532,1745583055471,-500.0,0.00035616,2]
[358948533,1745583055481,-500.0,0.00035616,2]
[358948534,1745583055491,-500.0,0.00035616,2]
[358948535,1745583055501,-500.0,0.00035616,2]
[358948536,1745583055510,-1883.8,0.00035616,2]
[358948537,1745583055520,-515.10608183,0.00035616,2]
[358948538,1745583055529,-500.0,0.00035616,2]
[358948539,1745583055539,-500.0,0.00035616,2]
[358948540,1745583055549,-500.0,0.00035616,2]
[358948541,1745583055559,-715.33,0.00035616,2]
[358948542,1745583055568,-500.0,0.00035616,2]
[358948543,1745583055578,-500.0,0.00035616,2]
[358948544,1745583055587,-500.0,0.00035616,2]
[358948545,1745583055598,-151.0,0.00035616,7]
[358948546,1745583055608,-151.0,0.00035616,7]
[358948547,1745583055618,-151.0,0.00035616,7]
[358948548,1745583055628,-500.0,0.00035616,2]
[358948549,1745583055638,-151.0,0.00035616,7]
[358948550,1745583055647,-151.0,0.00035616,7]
[358948551,1745583055657,-500.0,0.00035616,2]
[358948552,1745583055666,-500.0,0.00035616,2]
[358948553,1745583055676,-500.0,0.00035616,2]
[358948554,1745583055685,-500.0,0.00035616,2]
[358948555,1745583055696,-1130.46,0.00035616,2]
[358948556,1745583055706,-509.46920241,0.00035616,2]
[358948557,1745583055715,-500.0,0.00035616,2]
[358948558,1745583055726,-500.0,0.00035616,2]
[358948559,1745583055736,-500.0,0.00035616,2]
[358948560,1745583055745,-686.42,0.00035616,2]
[358948561,1745583055755,-500.0,0.00035616,2]
[358948562,1745583055764,-500.0,0.00035616,2]
[358948563,1745583055774,-501.62234626,0.00035616,2]
[358948564,1745583055784,-152.452022,0.00035616,7]
[358948565,1745583055794,-500.0,0.00035616,2]
[358948566,1745583055803,-514.31014724,0.00035616,2]
[358948567,1745583055813,-500.0,0.00035616,2]
[358948568,1745583055823,-500.0,0.00035616,2]
[358948569,1745583055833,-500.0,0.00035616,2]
[358948570,1745583055843,-500.0,0.00035616,2]
[358948571,1745583055853,-1580.56,0.00035616,2]
[358948572,1745583055863,-500.0,0.00035616,2]
[358948573,1745583055873,-500.0,0.00035616,2]
[358948574,1745583055882,-500.0,0.00035616,2]
[358948575,1745583055892,-500.0,0.00035616,2]
[358948576,1745583055901,-1178.77,0.00035616,2]
[358948577,1745583055911,-500.0,0.00035616,2]
[358948578,1745583055921,-500.0,0.00035616,2]
[358948579,1745583055930,-987.3,0.00035616,2]
[358948580,1745583055940,-500.0,0.00035616,2]
[358948581,1745583055952,-500.0,0.00035616,2]
[358948582,1745583055963,-500.0,0.00035616,2]
[358948583,1745583055972,-500.0,0.00035616,2]
[358948584,1745583055983,-560.86,0.00035616,2]
[358948585,1745583055993,-500.0,0.00035616,2]
[358948586,1745583056002,-500.0,0.00035616,2]
[358948587,1745583056014,-500.0,0.00035616,2]
[358948588,1745583056024,-500.0,0.00035616,2]
[358948589,1745583056034,-531.43149761,0.00035616,2]
[358948590,1745583056043,-500.0,0.00035616,2]
[358948591,1745583056056,-500.0,0.00035616,2]
[358948592,1745583056066,-500.0,0.00035616,2]
[358948593,1745583056076,-500.0,0.00035616,2]
[358948594,1745583056085,-500.0,0.00035616,2]
[358948595,1745583056095,-500.0,0.00035616,2]
[358948596,1745583056107,-956.78,0.00035616,2]
[358948597,1745583056117,-530.27331446,0.00035616,2]
[358948598,1745583056129,-500.0,0.00035616,2]
[358948599,1745583056139,-500.0,0.00035616,2]
[358948600,1745583056149,-500.0,0.00035616,2]
[358948601,1745583056161,-500.0,0.00035616,2]
[358948602,1745583056171,-515.08532978,0.00035616,2]
[358948603,1745583056181,-636.67,0.00035616,2]
[358948604,1745583056192,-500.0,0.00035616,2]
[358948605,1745583056202,-966.15,0.00035616,2]
[358948606,1745583056212,-500.0,0.00035616,2]
[358948607,1745583056222,-500.0,0.00035616,2]
[358948608,1745583056232,-500.0,0.00035616,2]
[358948609,1745583056241,-500.0,0.00035616,2]
[358948610,1745583056255,-500.0,0.00035616,2]
[358948611,1745583056266,-1012.74,0.00035616,2]
[358948612,1745583056278,-500.0,0.00035616,2]
[358948613,1745583056289,-818.36,0.00035616,2]
[358948614,1745583056300,-542.14184706,0.00035616,2]
[358948615,1745583056311,-509.6676128,0.00035616,2]
[358948616,1745583056321,-532.80945532,0.00035616,2]
[358948617,1745583056331,-500.0,0.00035616,2]
[358948618,1745583056340,-500.0,0.00035616,2]
[358948619,1745583056350,-500.0,0.00035616,2]
[358948620,1745583056360,-152.404596,0.00035616,7]
[358948621,1745583056371,-1055.72,0.00035616,2]
[358948622,1745583056383,-971.58,0.00035616,2]
[358948623,1745583056398,-574.02938754,0.00035616,2]
[358948624,1745583056407,-500.0,0.00035616,2]
[358948625,1745583056417,-500.0,0.00035616,2]
[358948626,1745583056428,-500.0,0.00035616,2]
[358948627,1745583056439,-1159.23,0.00035616,2]
[358948628,1745583056449,-500.0,0.00035616,2]
[358948629,1745583056460,-500.0,0.00035616,2]
[358948630,1745583056473,-1090.24,0.00035616,2]
[358948631,1745583056482,-500.0,0.00035616,2]
[358948632,1745583056493,-500.0,0.00035616,2]
[358948633,1745583056502,-557.7150526,0.00035616,2]
[358948634,1745583056514,-500.0,0.00035616,2]